fUSD/lending_fUSD_20260517
["ID","MTS","AMOUNT","RATE_DAILY","PERIOD"]
[422509640,1779007842000,-500.0,0.00037185,10]
[422509643,1779007842000,-500.0,0.00037185,10]
[422509639,1779007842000,-500.0,0.00037185,10]
[422509638,1779007842000,-500.0,0.00037185,10]
[422509611,1779007842000,-577.47815809,0.00036377,2]
[422509623,1779007842000,-385.1569978,0.00036377,2]
[422509617,1779007842000,-484.30212364,0.00036377,2]
[422509581,1779007842000,-395.82293386,0.00036377,2]
[422509610,1779007842000,-300.0,0.00036377,2]
[422509579,1779007842000,-604.73492277,0.00036377,2]
[422509582,1779007842000,-300.0,0.00036377,2]
[422509587,1779007842000,-300.0,0.00036377,2]
[422509588,1779007842000,-301.92446648,0.00036377,2]
[422509590,1779007842000,-300.70672347,0.00036377,2]
[422509591,1779007842000,-300.0,0.00036377,2]
[422509580,1779007842000,-300.0,0.00036377,2]
[422509584,1779007842000,-1067.39759447,0.00036377,2]
[422509589,1779007842000,-300.0,0.00036377,2]
[422509583,1779007842000,-527.9795525,0.00036377,2]
[422509586,1779007842000,-726.3731759,0.00036377,2]
[422509585,1779007842000,-893.8052833,0.00036377,2]
[422509593,1779007842000,-333.68172245,0.00036377,2]
[422509592,1779007842000,-317.91000476,0.00036377,2]
[422509594,1779007842000,-300.0,0.00036377,2]
[422509595,1779007842000,-949.41386656,0.00036377,2]
[422509604,1779007842000,-864.84573435,0.00036377,2]
[422509601,1779007842000,-300.0,0.00036377,2]
[422509603,1779007842000,-309.72976467,0.00036377,2]
[422509598,1779007842000,-383.47707127,0.00036377,2]
[422509597,1779007842000,-1913.25849317,0.00036377,2]
[422509602,1779007842000,-1147.71030809,0.00036377,2]
[422509599,1779007842000,-344.12979214,0.00036377,2]
[422509600,1779007842000,-527.12281632,0.00036377,2]
[422509596,1779007842000,-300.0,0.00036377,2]
[422509605,1779007842000,-1791.55036629,0.00036377,2]
[422509607,1779007842000,-311.04198967,0.00036377,2]
[422509606,1779007842000,-300.0,0.00036377,2]
[422509609,1779007842000,-464.05309097,0.00036377,2]
[422509608,1779007842000,-300.0,0.00036377,2]
[422509650,1779007842000,-500.0,0.00037185,120]
[422509637,1779007842000,-500.0,0.00037185,10]
[422509647,1779007842000,-442.23348192,0.00037185,120]
[422509678,1779007842000,-2429.0,0.00038329,120]
[422509679,1779007842000,-2118.97095088,0.00038329,120]
[422509672,1779007842000,-505.0,0.00038045,13]
[422509684,1779007842000,-500.0,0.00038787,120]
[422509688,1779007842000,-1000.0,0.00038899,18]
[422509686,1779007842000,-657.0,0.000388,30]
[422509697,1779007842000,-154.55633249,0.00039,7]
[422509689,1779007842000,-160.82,0.000389,16]
[422509685,1779007842000,-234130.64348367,0.00038788,2]
[422509692,1779007842000,-2000.0,0.0003895,2]
[422509696,1779007842000,-5555.98235819,0.00039,2]
[422509693,1779007842000,-10000.0,0.0003895,2]
[422509690,1779007842000,-250.93051934,0.00038929,2]
[422509687,1779007842000,-505.0,0.00038884,14]
[422509694,1779007842000,-1000.0,0.00038989,116]
[422509691,1779007842000,-272.0,0.00038945,2]
[422509699,1779007842000,-155.0,0.000392,120]
[422509709,1779007842000,-163.0,0.00039464,11]
[422509700,1779007842000,-334.5992,0.000393,30]
[422509701,1779007842000,-503.71665438,0.00039356,60]
[422509698,1779007842000,-500.0,0.00039083,120]
[422509702,1779007842000,-500.0,0.00039356,60]
[422509708,1779007842000,-2557.44843548,0.00039429,11]
[422509704,1779007842000,-183.5467066,0.00039388,30]
[422509707,1779007842000,-2557.44843548,0.00039429,11]
[422509705,1779007842000,-2557.44843548,0.00039429,11]
[422509703,1779007842000,-600.0,0.00039356,60]
[422509706,1779007842000,-2557.44843548,0.00039429,11]
[422509644,1779007842000,-500.0,0.00037185,10]
[422509676,1779007842000,-3998.63363425,0.000383,30]
[422509673,1779007842000,-2450.3220307,0.00038097,2]
[422509695,1779007842000,-234.61941103,0.00039,2]
[422509671,1779007842000,-155.0,0.00038,120]
[422509677,1779007842000,-3998.63363425,0.000383,30]
[422509653,1779007842000,-500.0,0.00037185,120]
[422509646,1779007842000,-500.0,0.00037185,120]
[422509655,1779007842000,-500.0,0.00037185,120]
[422509649,1779007842000,-500.0,0.00037185,120]
[422509652,1779007842000,-500.0,0.00037185,120]
[422509645,1779007842000,-500.0,0.00037185,10]
[422509656,1779007842000,-1948231.9153111,0.00037186,2]
[422509648,1779007842000,-500.0,0.00037185,120]
[422509651,1779007842000,-500.0,0.00037185,120]
[422509666,1779007842000,-657.0,0.000376,30]
[422509660,1779007842000,-1354.0,0.00037409,2]
[422509658,1779007842000,-505.0,0.00037206,13]
[422509657,1779007842000,-316.58,0.000372,14]
[422509663,1779007842000,-930.0,0.00037409,2]
[422509654,1779007842000,-500.0,0.00037185,120]
[422509680,1779007842000,-1000.0,0.00038409,105]
[422509661,1779007842000,-3543.0,0.00037409,2]
[422509681,1779007842000,-396.64754395,0.0003841,105]
[422509674,1779007842000,-151.0,0.00038125,30]
[422509682,1779007842000,-220.39803126,0.00038494,2]
[422509675,1779007842000,-3998.63363425,0.000383,30]
[422509670,1779007842000,-1000.0,0.00037963,13]
[422509683,1779007842000,-316.58,0.000385,14]
[422509667,1779007842000,-183.5467066,0.00037681,30]
[422509662,1779007842000,-1270.0,0.00037409,2]
[422509669,1779007842000,-1000.0,0.00037839,86]
[422509664,1779007842000,-417.0,0.00037409,2]
[422509665,1779007842000,-43882.74100711,0.00037492,2]
[422509668,1779007842000,-150.0,0.00037694,2]
[422509659,1779007842000,-927.0,0.00037409,2]
[422509746,1779007843000,-500.0,0.0004,7]
[422509753,1779007843000,-383.5,0.0004,120]
[422509765,1779007843000,-1000.0,0.000401,30]
[422509764,1779007843000,-308.0,0.000401,30]
[422509754,1779007843000,-324.27,0.0004,120]
[422509747,1779007843000,-500.0,0.0004,7]
[422509744,1779007843000,-4040.4716116,0.0004,14]
[422509749,1779007843000,-500.0,0.0004,7]
[422509742,1779007843000,-500.0,0.0004,7]
[422509752,1779007843000,-151.17,0.0004,120]
[422509740,1779007843000,-500.0,0.0004,7]
[422509741,1779007843000,-500.0,0.0004,7]
[422509766,1779007843000,-1000.0,0.00040127,90]
[422509750,1779007843000,-329.21,0.0004,120]
[422509755,1779007843000,-204.67,0.0004,120]
[422509762,1779007843000,-2500.0,0.000401,120]
[422509767,1779007843000,-500.0,0.00040178,60]
[422509768,1779007843000,-600.0,0.00040178,60]
[422509758,1779007843000,-500.0,0.0004,120]
[422509757,1779007843000,-500.0,0.0004,120]
[422509760,1779007843000,-215.0785988,0.0004,7]
[422509763,1779007843000,-314.0,0.000401,30]
[422509769,1779007843000,-954.58977359,0.00040183,120]
[422509772,1779007843000,-5162.98681034,0.00040225,15]
[422509771,1779007843000,-5000.0,0.00040225,15]
[422509773,1779007843000,-220.39803126,0.00040228,2]
[422509770,1779007843000,-1000.0,0.00040214,9]
[422509774,1779007843000,-2107.96,0.00040244,2]
[422509781,1779007843000,-1236.21,0.0004029,60]
[422509778,1779007843000,-2313.0,0.00040286,11]
[422509756,1779007843000,-500.0,0.0004,120]
[422509745,1779007843000,-500.0,0.0004,7]
[422509710,1779007843000,-150.0,0.00039579,2]
[422509743,1779007843000,-451.51,0.0004,7]
[422509776,1779007843000,-400.0,0.0004027,3]
[422509711,1779007843000,-250.0,0.000396,30]
[422509713,1779007843000,-316.58,0.000397,14]
[422509723,1779007843000,-209.3312047,0.00039999,31]
[422509715,1779007843000,-505.0,0.00039723,15]
[422509712,1779007843000,-10000.0,0.000396,10]
[422509714,1779007843000,-158.41,0.000397,30]
[422509724,1779007843000,-288.06537398,0.00039999,31]
[422509717,1779007843000,-359.71931752,0.00039866,14]
[422509716,1779007843000,-3756.27141144,0.00039746,2]
[422509719,1779007843000,-460.2,0.000399,120]
[422509718,1779007843000,-200.0,0.000399,16]
[422509722,1779007843000,-367.09341321,0.00039997,120]
[422509721,1779007843000,-503.13764112,0.0003998,120]
[422509720,1779007843000,-1572.578401,0.000399,33]
[422509735,1779007843000,-500.0,0.0004,7]
[422509726,1779007843000,-500.0,0.00039999,31]
[422509748,1779007843000,-500.0,0.0004,7]
[422509739,1779007843000,-500.0,0.0004,7]
[422509731,1779007843000,-1726.61899881,0.0004,120]
[422509733,1779007843000,-500.0,0.0004,7]
[422509727,1779007843000,-500.0,0.00039999,31]
[422509725,1779007843000,-290.22148721,0.00039999,31]
[422509751,1779007843000,-692.58,0.0004,120]
[422509729,1779007843000,-500.0,0.00039999,31]
[422509732,1779007843000,-657.0,0.0004,30]
[422509734,1779007843000,-500.0,0.0004,7]
[422509737,1779007843000,-500.0,0.0004,7]
[422509730,1779007843000,-527.47591777,0.00039999,31]
[422509736,1779007843000,-500.0,0.0004,7]
[422509738,1779007843000,-500.0,0.0004,7]
[422509728,1779007843000,-500.0,0.00039999,31]
[422509780,1779007843000,-169.59,0.0004029,60]
[422509777,1779007843000,-163.0,0.00040286,11]
[422509782,1779007843000,-1000.0,0.00040306,90]
[422509816,1779007843000,-181.34053925,0.00040429,120]
[422509815,1779007843000,-227.30358758,0.00040429,30]
[422509824,1779007843000,-159.10976002,0.00040429,120]
[422509819,1779007843000,-163.05696925,0.00040429,120]
[422509818,1779007843000,-159.10976002,0.00040429,120]
[422509817,1779007843000,-150.0,0.00040429,2]
[422509820,1779007843000,-159.10976002,0.00040429,120]
[422509822,1779007843000,-159.10976002,0.00040429,120]
[422509821,1779007843000,-159.10976002,0.00040429,120]
[422509826,1779007843000,-184.77436896,0.00040429,120]
[422509828,1779007843000,-534.0512539,0.00040429,5]
[422509837,1779007843000,-160.0,0.00040429,2]
[422509827,1779007843000,-1279.72,0.00040429,120]
[422509838,1779007843000,-160.0,0.00040429,2]
[422509829,1779007843000,-500.0,0.00040429,120]
[422509840,1779007843000,-160.0,0.00040429,2]
[422509830,1779007843000,-233.27153218,0.00040429,60]
[422509845,1779007843000,-163.75200715,0.00040429,30]
[422509848,1779007843000,-160.0,0.00040429,2]
[422509841,1779007843000,-278.16,0.00040429,2]
[422509847,1779007843000,-160.0,0.00040429,2]
[422509846,1779007843000,-286.56366923,0.00040429,120]
[422509844,1779007843000,-236.6981167,0.00040429,60]
[422509813,1779007843000,-153.0,0.00040429,120]
[422509842,1779007843000,-159.10976001,0.00040429,120]
[422509834,1779007843000,-160.0,0.00040429,2]
[422509833,1779007843000,-160.0,0.00040429,2]
[422509835,1779007843000,-160.0,0.00040429,2]
[422509831,1779007843000,-160.0,0.00040429,2]
[422509832,1779007843000,-160.0,0.00040429,2]
[422509839,1779007843000,-160.0,0.00040429,2]
[422509836,1779007843000,-160.0,0.00040429,2]
[422509825,1779007843000,-159.10976002,0.00040429,120]
[422509843,1779007843000,-100000.0,0.00040429,30]
[422509812,1779007843000,-156.0,0.00040429,120]
[422509823,1779007843000,-159.10976002,0.00040429,120]
[422509775,1779007843000,-400.0,0.0004027,3]
[422509789,1779007843000,-1000.0,0.00040399,33]
[422509785,1779007843000,-1000.0,0.00040343,15]
[422509784,1779007843000,-1000.0,0.00040342,90]
[422509794,1779007843000,-1354.0,0.00040409,2]
[422509792,1779007843000,-154.90923201,0.000404,30]
[422509796,1779007843000,-1270.0,0.00040409,2]
[422509795,1779007843000,-3543.0,0.00040409,2]
[422509786,1779007843000,-20359.9147567,0.0004036,15]
[422509787,1779007843000,-163.0,0.0004036,11]
[422509783,1779007843000,-43882.74100711,0.00040329,15]
[422509788,1779007843000,-163.0,0.00040398,11]
[422509791,1779007843000,-1500.0,0.000404,33]
[422509793,1779007843000,-927.0,0.00040409,2]
[422509779,1779007843000,-437.19,0.0004029,60]
[422509799,1779007843000,-417.0,0.00040409,2]
[422509803,1779007843000,-500.0,0.00040429,120]
[422509814,1779007843000,-100000.0,0.00040429,30]
[422509807,1779007843000,-153.0,0.00040429,120]
[422509806,1779007843000,-151.0,0.00040429,30]
[422509790,1779007843000,-155.0,0.000404,120]
[422509804,1779007843000,-151.0,0.00040429,7]
[422509800,1779007843000,-500.0,0.00040429,10]
[422509805,1779007843000,-168.068147,0.00040429,20]
[422509801,1779007843000,-500.0,0.00040429,120]
[422509811,1779007843000,-272.0,0.00040429,120]
[422509809,1779007843000,-152.0,0.00040429,120]
[422509810,1779007843000,-178.0,0.00040429,120]
[422509808,1779007843000,-161.0,0.00040429,120]
[422509798,1779007843000,-930.0,0.00040409,2]
[422509802,1779007843000,-500.0,0.00040429,120]
[422509895,1779007844000,-408.97,0.00040499,120]
[422509890,1779007844000,-408.97,0.00040499,120]
[422509896,1779007844000,-408.97,0.00040499,120]
[422509897,1779007844000,-408.97,0.00040499,120]
[422509891,1779007844000,-408.97,0.00040499,120]
[422509881,1779007844000,-500.0,0.00040498,120]
[422509889,1779007844000,-408.97,0.00040499,120]
[422509885,1779007844000,-1000.0,0.00040498,31]
[422509879,1779007844000,-28044.31,0.00040492,9]
[422509883,1779007844000,-1000.0,0.00040498,4]
[422509882,1779007844000,-1000.0,0.00040498,5]
[422509877,1779007844000,-344218.98,0.00040492,9]
[422509892,1779007844000,-408.97,0.00040499,120]
[422509893,1779007844000,-408.97,0.00040499,120]
[422509906,1779007844000,-356.0,0.00040499,120]
[422509894,1779007844000,-408.97,0.00040499,120]
[422509901,1779007844000,-408.97,0.00040499,120]
[422509899,1779007844000,-408.97,0.00040499,120]
[422509898,1779007844000,-408.97,0.00040499,120]
[422509902,1779007844000,-408.97,0.00040499,120]
[422509903,1779007844000,-408.97,0.00040499,120]
[422509905,1779007844000,-309.77765035,0.00040499,120]
[422509912,1779007844000,-151.0,0.00040499,120]
[422509913,1779007844000,-1830.62971474,0.00040499,120]
[422509911,1779007844000,-2000.0,0.00040499,120]
[422509904,1779007844000,-320.57411475,0.00040499,120]
[422509914,1779007844000,-282.0,0.00040499,120]
[422509884,1779007844000,-1000.0,0.00040498,10]
[422509907,1779007844000,-263.8,0.00040499,2]
[422509900,1779007844000,-408.97,0.00040499,120]
[422509878,1779007844000,-11589.41,0.00040492,9]
[422509866,1779007844000,-160.320001,0.00040429,2]
[422509888,1779007844000,-408.95,0.00040499,120]
[422509915,1779007844000,-150.0,0.00040499,2]
[422509850,1779007844000,-160.0,0.00040429,2]
[422509860,1779007844000,-160.0,0.00040429,2]
[422509853,1779007844000,-160.0,0.00040429,2]
[422509849,1779007844000,-160.0,0.00040429,2]
[422509861,1779007844000,-160.0,0.00040429,2]
[422509852,1779007844000,-160.0,0.00040429,2]
[422509851,1779007844000,-160.0,0.00040429,2]
[422509854,1779007844000,-160.0,0.00040429,2]
[422509857,1779007844000,-160.0,0.00040429,2]
[422509855,1779007844000,-160.0,0.00040429,2]
[422509856,1779007844000,-160.0,0.00040429,2]
[422509858,1779007844000,-160.0,0.00040429,2]
[422509859,1779007844000,-160.0,0.00040429,2]
[422509862,1779007844000,-277.84,0.00040429,2]
[422509865,1779007844000,-273.51692486,0.00040429,60]
[422509864,1779007844000,-273.51692486,0.00040429,60]
[422509871,1779007844000,-309.91,0.00040429,120]
[422509867,1779007844000,-454626.55680358,0.00040429,60]
[422509874,1779007844000,-218.90507598,0.00040429,30]
[422509863,1779007844000,-273.51692486,0.00040429,60]
[422509872,1779007844000,-320.0,0.00040429,2]
[422509873,1779007844000,-500.0,0.00040429,120]
[422509870,1779007844000,-320.0,0.00040429,2]
[422509868,1779007844000,-100000.0,0.00040429,30]
[422509869,1779007844000,-300.0,0.00040429,2]
[422509876,1779007844000,-1000.0,0.00040487,90]
[422509886,1779007844000,-1000.0,0.00040498,91]
[422509887,1779007844000,-1000.0,0.00040498,49]
[422509880,1779007844000,-403465.53,0.00040492,9]
[422509908,1779007844000,-159.0,0.00040499,120]
[422509875,1779007844000,-264.47763752,0.0004043,2]
[422509909,1779007844000,-495.69948996,0.00040499,120]
[422509979,1779007844000,-1000.0,0.00040942,90]
[422509947,1779007844000,-1000.0,0.00040764,60]
[422509944,1779007844000,-1000.0,0.00040699,12]
[422509951,1779007844000,-5245.83078647,0.000408,6]
[422509954,1779007844000,-350.0,0.00040837,4]
[422509952,1779007844000,-1000.0,0.00040813,90]
[422509949,1779007844000,-500.0,0.00040799,120]
[422509956,1779007844000,-350.0,0.00040862,2]
[422509968,1779007844000,-151.0,0.00040903,30]
[422509971,1779007844000,-434709.2992696,0.00040903,2]
[422509970,1779007844000,-177.106754,0.00040903,30]
[422509969,1779007844000,-226.4192,0.00040903,7]
[422509959,1779007844000,-1000.0,0.00040899,43]
[422509958,1779007844000,-1000.0,0.00040899,17]
[422509946,1779007844000,-1000.0,0.00040763,90]
[422509957,1779007844000,-1000.0,0.00040899,20]
[422509961,1779007844000,-460.2,0.000409,120]
[422509963,1779007844000,-194.168,0.000409,43]
[422509962,1779007844000,-194.168,0.000409,43]
[422509966,1779007844000,-5555.98235819,0.000409,2]
[422509964,1779007844000,-200.0,0.000409,20]
[422509967,1779007844000,-154.55633249,0.000409,8]
[422509965,1779007844000,-234.61941103,0.000409,2]
[422509975,1779007844000,-1000.0,0.00040925,11]
[422509977,1779007844000,-2107.96,0.00040929,2]
[422509972,1779007844000,-5148.93267477,0.00040904,2]
[422509974,1779007844000,-350.0,0.00040916,4]
[422509976,1779007844000,-163.0,0.00040926,11]
[422509978,1779007844000,-167.2870129,0.00040929,7]
[422509910,1779007844000,-152.0,0.00040499,120]
[422509960,1779007844000,-200.0,0.000409,17]
[422509948,1779007844000,-227.81739614,0.00040792,120]
[422509973,1779007844000,-5909.11924427,0.00040904,2]
[422509943,1779007844000,-500.0,0.00040699,120]
[422509917,1779007844000,-316.58,0.000405,14]
[422509927,1779007844000,-1946.38074,0.0004057,120]
[422509928,1779007844000,-1946.38074,0.0004057,120]
[422509921,1779007844000,-227.81739614,0.00040518,120]
[422509918,1779007844000,-93978.1444388,0.000405,10]
[422509916,1779007844000,-159.11,0.000405,30]
[422509920,1779007844000,-1000.0,0.00040511,16]
[422509919,1779007844000,-1000.0,0.00040505,90]
[422509950,1779007844000,-9000.0,0.000408,30]
[422509925,1779007844000,-1946.38074,0.0004057,120]
[422509923,1779007844000,-161.4928877,0.00040548,2]
[422509926,1779007844000,-1946.38074,0.0004057,120]
[422509924,1779007844000,-505.0,0.00040563,16]
[422509932,1779007844000,-50000.0,0.00040629,120]
[422509935,1779007844000,-6784.29,0.00040639,2]
[422509922,1779007844000,-227.81739613,0.00040518,120]
[422509934,1779007844000,-1000.0,0.00040636,90]
[422509955,1779007844000,-46092.0,0.00040845,120]
[422509937,1779007844000,-2313.0,0.00040678,11]
[422509945,1779007844000,-394623.24160619,0.000407,12]
[422509953,1779007844000,-50000.0,0.00040829,120]
[422509929,1779007844000,-1946.38074,0.0004057,120]
[422509933,1779007844000,-265.43477349,0.00040632,10]
[422509936,1779007844000,-2313.0,0.00040676,11]
[422509939,1779007844000,-2313.0,0.00040679,11]
[422509940,1779007844000,-1000.0,0.00040679,90]
[422509938,1779007844000,-1586.0,0.00040679,11]
[422509941,1779007844000,-2313.0,0.0004068,11]
[422509930,1779007844000,-1000.0,0.00040579,90]
[422509942,1779007844000,-311.37681882,0.0004068,2]
[422509931,1779007844000,-159.11,0.000406,30]
[422510018,1779007845000,-500.0,0.00040999,120]
[422510019,1779007845000,-6888.0,0.00040999,120]
[422510016,1779007845000,-1030.0,0.00040999,120]
[422510020,1779007845000,-520.0,0.00040999,120]
[422510017,1779007845000,-151.0,0.00040999,120]
[422510024,1779007845000,-151.0,0.00040999,120]
[422510022,1779007845000,-1068.11,0.00040999,120]
[422510023,1779007845000,-518.5,0.00040999,120]
[422510021,1779007845000,-151.0,0.00040999,120]
[422510025,1779007845000,-500.0,0.00040999,120]
[422510013,1779007845000,-7527.41158839,0.00040999,7]
[422510015,1779007845000,-500.0,0.00040999,120]
[422510027,1779007845000,-539.24,0.00040999,120]
[422510042,1779007845000,-200.0,0.00040999,120]
[422510029,1779007845000,-156.587,0.00040999,120]
[422510047,1779007845000,-151.0,0.00040999,120]
[422510014,1779007845000,-200.0,0.00040999,120]
[422510044,1779007845000,-168.3888056,0.00040999,120]
[422510043,1779007845000,-620.0,0.00040999,120]
[422510038,1779007845000,-557.5788265,0.00040999,120]
[422510035,1779007845000,-200.0,0.00040999,120]
[422510026,1779007845000,-2625.15855112,0.00040999,120]
[422510034,1779007845000,-559.19188,0.00040999,120]
[422510033,1779007845000,-500.0,0.00040999,120]
[422510036,1779007845000,-162.380719,0.00040999,120]
[422510031,1779007845000,-537.6845,0.00040999,120]
[422510032,1779007845000,-151.0,0.00040999,120]
[422510037,1779007845000,-1148.61238259,0.00040999,120]
[422510028,1779007845000,-200.0,0.00040999,120]
[422510030,1779007845000,-1107.63007,0.00040999,120]
[422510007,1779007845000,-1946.38074,0.00040975,120]
[422509990,1779007845000,-150.0,0.00040975,2]
[422510005,1779007845000,-1000.0,0.00040975,2]
[422510046,1779007845000,-500.0,0.00040999,120]
[422509980,1779007845000,-1000.0,0.00040948,50]
[422509981,1779007845000,-1000.0,0.00040956,90]
[422509984,1779007845000,-311.37681882,0.00040962,2]
[422509983,1779007845000,-1000.0,0.00040961,90]
[422509982,1779007845000,-2557.44843548,0.00040957,13]
[422509986,1779007845000,-400.0,0.0004097,3]
[422509997,1779007845000,-1000.0,0.00040975,2]
[422509998,1779007845000,-1000.0,0.00040975,2]
[422509996,1779007845000,-1000.0,0.00040975,2]
[422509985,1779007845000,-1000.0,0.00040969,3]
[422509989,1779007845000,-1000.0,0.00040974,2]
[422509992,1779007845000,-150.0,0.00040975,2]
[422509988,1779007845000,-400.0,0.0004097,3]
[422509991,1779007845000,-3316.11994332,0.00040975,2]
[422509995,1779007845000,-2294.9737345,0.00040975,2]
[422509987,1779007845000,-400.0,0.0004097,3]
[422509994,1779007845000,-150.0,0.00040975,2]
[422509993,1779007845000,-17342.44378636,0.00040975,2]
[422510000,1779007845000,-1000.0,0.00040975,2]
[422510010,1779007845000,-1000.0,0.00040995,7]
[422509999,1779007845000,-1000.0,0.00040975,2]
[422510012,1779007845000,-1087.67016758,0.00040999,30]
[422510002,1779007845000,-1000.0,0.00040975,2]
[422510001,1779007845000,-1000.0,0.00040975,2]
[422510011,1779007845000,-1000.0,0.00040996,14]
[422510003,1779007845000,-1000.0,0.00040975,2]
[422510006,1779007845000,-1008.41099095,0.00040975,2]
[422510004,1779007845000,-1000.0,0.00040975,2]
[422510008,1779007845000,-273.51692486,0.00040993,60]
[422510048,1779007845000,-601.3376128,0.00040999,120]
[422510009,1779007845000,-246.78,0.00040993,87]
[422510041,1779007845000,-579.88197956,0.00040999,120]
[422510088,1779007845000,-500.0,0.00040999,120]
[422510080,1779007845000,-500.0,0.00040999,120]
[422510081,1779007845000,-151.0,0.00040999,120]
[422510085,1779007845000,-151.0,0.00040999,120]
[422510084,1779007845000,-500.0,0.00040999,120]
[422510083,1779007845000,-500.0,0.00040999,120]
[422510086,1779007845000,-151.0,0.00040999,120]
[422510087,1779007845000,-500.0,0.00040999,120]
[422510082,1779007845000,-151.0,0.00040999,120]
[422510103,1779007845000,-500.0,0.00040999,120]
[422510091,1779007845000,-151.0,0.00040999,120]
[422510101,1779007845000,-151.0,0.00040999,120]
[422510102,1779007845000,-1000.0,0.00040999,120]
[422510093,1779007845000,-500.0,0.00040999,120]
[422510089,1779007845000,-151.0,0.00040999,120]
[422510090,1779007845000,-500.0,0.00040999,120]
[422510092,1779007845000,-500.0,0.00040999,120]
[422510096,1779007845000,-500.0,0.00040999,120]
[422510095,1779007845000,-1000.0,0.00040999,120]
[422510098,1779007845000,-151.0,0.00040999,120]
[422510099,1779007845000,-500.0,0.00040999,120]
[422510097,1779007845000,-518.5,0.00040999,120]
[422510108,1779007845000,-156.587,0.00040999,120]
[422510104,1779007845000,-151.0,0.00040999,120]
[422510107,1779007845000,-151.0,0.00040999,120]
[422510105,1779007845000,-537.6845,0.00040999,120]
[422510109,1779007845000,-1000.0,0.00040999,120]
[422510110,1779007845000,-500.0,0.00040999,120]
[422510106,1779007845000,-500.0,0.00040999,120]
[422510045,1779007845000,-1191.11104075,0.00040999,120]
[422510094,1779007845000,-151.0,0.00040999,120]
[422510079,1779007845000,-151.0,0.00040999,120]
[422510100,1779007845000,-151.0,0.00040999,120]
[422510077,1779007845000,-695.39793187,0.00040999,120]
[422510078,1779007845000,-201.93286098,0.00040999,120]
[422510040,1779007845000,-151.0,0.00040999,120]
[422510039,1779007845000,-500.0,0.00040999,120]
[422510050,1779007845000,-174.61919141,0.00040999,120]
[422510049,1779007845000,-200.0,0.00040999,120]
[422510062,1779007845000,-646.65982734,0.00040999,120]
[422510060,1779007845000,-500.0,0.00040999,120]
[422510052,1779007845000,-1235.18214925,0.00040999,120]
[422510058,1779007845000,-1280.88388878,0.00040999,120]
[422510054,1779007845000,-151.0,0.00040999,120]
[422510053,1779007845000,-500.0,0.00040999,120]
[422510051,1779007845000,-642.94,0.00040999,120]
[422510061,1779007845000,-151.0,0.00040999,120]
[422510055,1779007845000,-200.0,0.00040999,120]
[422510057,1779007845000,-181.08010149,0.00040999,120]
[422510059,1779007845000,-666.72878,0.00040999,120]
[422510064,1779007845000,-187.78006525,0.00040999,120]
[422510073,1779007845000,-716.97946142,0.00040999,120]
[422510070,1779007845000,-670.58624095,0.00040999,120]
[422510056,1779007845000,-623.58710448,0.00040999,120]
[422510071,1779007845000,-194.72792766,0.00040999,120]
[422510072,1779007845000,-151.0,0.00040999,120]
[422510069,1779007845000,-200.0,0.00040999,120]
[422510067,1779007845000,-500.0,0.00040999,120]
[422510068,1779007845000,-151.0,0.00040999,120]
[422510066,1779007845000,-691.39774486,0.00040999,120]
[422510063,1779007845000,-200.0,0.00040999,120]